fUST/lending_fUST_20260703
["ID","MTS","AMOUNT","RATE_DAILY","PERIOD"]
[426964851,1783077041000,-1700.62049343,0.00029019,2]
[426964850,1783077041000,-396.11281216,0.00029019,2]
[426964846,1783077041000,-2000.0,0.00029019,2]
[426964853,1783077041000,-1089.74501005,0.00029019,2]
[426964847,1783077041000,-24627.77403888,0.00029019,2]
[426964849,1783077041000,-46160.44599894,0.00029019,2]
[426964845,1783077041000,-35000.0,0.00029019,30]
[426964848,1783077041000,-41948.70408636,0.00029019,2]
[426964843,1783077041000,-3408.79642113,0.00029019,2]
[426964841,1783077041000,-259780.33337743,0.00029019,30]
[426964842,1783077041000,-220000.0,0.00029019,30]
[426964839,1783077041000,-10000.0,0.00029019,120]
[426964836,1783077041000,-172.537103,0.00029019,7]
[426964840,1783077041000,-112306.35539717,0.00029019,30]
[426964838,1783077041000,-161.92,0.00029019,2]
[426964837,1783077041000,-172.537111,0.00029019,7]
[426964835,1783077041000,-172.537103,0.00029019,7]
[426964844,1783077041000,-23443.71957116,0.00029019,30]
[426964863,1783077043000,-292.365,0.00028,2]
[426964864,1783077043000,-1378.116863,0.00028,2]
[426964866,1783077043000,-151.33435891,0.000285,2]
[426964865,1783077043000,-410.37899758,0.000285,2]
[426964882,1783077047000,-1305.33256476,0.00029019,2]
[426964880,1783077047000,-438.28664351,0.000285,2]
[426964891,1783077047000,-3460.0,0.00029019,2]
[426964883,1783077047000,-49666.48936768,0.00029019,2]
[426964885,1783077047000,-3460.0,0.00029019,2]
[426964893,1783077047000,-150.0,0.00029019,2]
[426964887,1783077047000,-3460.0,0.00029019,2]
[426964881,1783077047000,-1000.0,0.00029,2]
[426964888,1783077047000,-3460.0,0.00029019,2]
[426964889,1783077047000,-3460.0,0.00029019,2]
[426964890,1783077047000,-3460.0,0.00029019,2]
[426964892,1783077047000,-3460.0,0.00029019,2]
[426964884,1783077047000,-6297.11786519,0.00029019,2]
[426964895,1783077047000,-49963.50453998,0.00029019,2]
[426964894,1783077047000,-1464.46,0.00029019,2]
[426964898,1783077047000,-1422.06674325,0.00029019,2]
[426964886,1783077047000,-3460.0,0.00029019,2]
[426964908,1783078149000,-667.61512969,0.00022,7]
[426964909,1783078164000,-13.24383398,0.00022,7]
[426964911,1783078164000,-208.829689,0.00023032,2]
[426964913,1783078164000,-173.169425,0.00023217,2]
[426964912,1783078164000,-680.85896367,0.000231,7]
[426964914,1783078164000,-680.85896367,0.0002376,7]
[426964910,1783078164000,-680.85896367,0.0002244,7]
[426964919,1783078166000,-783.88812948,0.00024033,2]
[426964915,1783078166000,-328.57067268,0.00024033,2]
[426964916,1783078166000,-783.88812948,0.00024033,2]
[426964917,1783078166000,-783.88812948,0.00024033,2]
[426964918,1783078166000,-783.88812948,0.00024033,2]
[426964920,1783078166000,-783.88812948,0.00024033,2]
[426964921,1783078166000,-783.88812948,0.00024033,2]
[426964922,1783078166000,-783.88812948,0.00024033,2]
[426964926,1783078166000,-783.88812948,0.00024033,2]
[426964924,1783078166000,-783.88812948,0.00024033,2]
[426964925,1783078166000,-783.88812948,0.00024033,2]
[426964929,1783078166000,-783.88812948,0.00024033,2]
[426964930,1783078166000,-783.88812948,0.00024033,2]
[426964927,1783078166000,-783.88812948,0.00024033,2]
[426964928,1783078166000,-783.88812948,0.00024033,2]
[426964931,1783078166000,-500.0,0.00024033,2]
[426964932,1783078166000,-300.33081626,0.00024033,2]
[426964923,1783078166000,-783.88812948,0.00024033,2]
[426964974,1783078232000,-666.30491005,0.00024032,2]
[426964981,1783078232000,-666.30491005,0.00024032,2]
[426964975,1783078232000,-666.30491005,0.00024032,2]
[426964980,1783078232000,-666.30491005,0.00024032,2]
[426964969,1783078232000,-229.99947088,0.00024032,2]
[426964972,1783078232000,-196.30438093,0.00024032,2]
[426964971,1783078232000,-470.00052912,0.00024032,2]
[426964973,1783078232000,-666.30491005,0.00024032,2]
[426964978,1783078232000,-666.30491005,0.00024032,2]
[426964982,1783078232000,-666.30491005,0.00024032,2]
[426964986,1783078232000,-666.30491005,0.00024032,2]
[426964983,1783078232000,-666.30491005,0.00024032,2]
[426964984,1783078232000,-305.50428115,0.00024032,2]
[426964985,1783078232000,-360.8006289,0.00024032,2]
[426964987,1783078232000,-666.30491005,0.00024032,2]
[426964990,1783078232000,-666.30491005,0.00024032,2]
[426964988,1783078232000,-666.30491005,0.00024032,2]
[426964989,1783078232000,-666.30491005,0.00024032,2]
[426964993,1783078232000,-483.83575416,0.00024032,2]
[426964991,1783078232000,-500.0,0.00024032,2]
[426964992,1783078232000,-666.30491005,0.00024032,2]
[426964976,1783078232000,-666.30491005,0.00024032,2]
[426965040,1783078239000,-16.16424584,0.00024032,2]
[426965052,1783078239000,-500.0,0.00024032,2]
[426965056,1783078239000,-93.3139069,0.00024032,2]
[426965042,1783078239000,-500.0,0.00024032,2]
[426965050,1783078239000,-196.06807149,0.00024032,2]
[426965044,1783078239000,-500.0,0.00024032,2]
[426965048,1783078239000,-500.0,0.00024032,2]
[426965046,1783078239000,-500.0,0.00024032,2]
[426965054,1783078239000,-500.0,0.00024032,2]
[426965523,1783078244000,-500.0,0.00024032,2]
[426965528,1783078244000,-500.0,0.00024032,2]
[426965538,1783078244000,-500.0,0.00024032,2]
[426965541,1783078244000,-500.0,0.00024032,2]
[426965542,1783078244000,-500.0,0.00024032,2]
[426965543,1783078244000,-547.01928902,0.00024032,2]
[426965540,1783078244000,-500.0,0.00024032,2]
[426965545,1783078244000,-500.0,0.00024032,2]
[426965548,1783078244000,-500.0,0.00024032,2]
[426965547,1783078244000,-500.0,0.00024032,2]
[426965546,1783078244000,-500.0,0.00024032,2]
[426965549,1783078244000,-500.0,0.00024032,2]
[426965553,1783078244000,-666.30491005,0.00024032,2]
[426965564,1783078244000,-528.934549,0.00026105,2]
[426965527,1783078244000,-500.0,0.00024032,2]
[426965544,1783078244000,-500.0,0.00024032,2]
[426965525,1783078244000,-500.0,0.00024032,2]
[426965516,1783078244000,-500.0,0.00024032,2]
[426965537,1783078244000,-500.0,0.00024032,2]
[426965504,1783078244000,-391.02075214,0.00024032,2]
[426965506,1783078244000,-15.66534096,0.00024032,2]
[426965513,1783078244000,-500.0,0.00024032,2]
[426965509,1783078244000,-500.0,0.00024032,2]
[426965508,1783078244000,-500.0,0.00024032,2]
[426965511,1783078244000,-500.0,0.00024032,2]
[426965507,1783078244000,-500.0,0.00024032,2]
[426965521,1783078244000,-500.0,0.00024032,2]
[426965510,1783078244000,-388.76998099,0.00024032,2]
[426965519,1783078244000,-500.0,0.00024032,2]
[426965532,1783078244000,-500.0,0.00024032,2]
[426965533,1783078244000,-500.0,0.00024032,2]
[426965518,1783078244000,-500.0,0.00024032,2]
[426965530,1783078244000,-500.0,0.00024032,2]
[426965531,1783078244000,-168.21675679,0.00024032,2]
[426965535,1783078244000,-500.0,0.00024032,2]
[426965515,1783078244000,-530.61354625,0.00024032,2]
[426965551,1783078244000,-500.0,0.00024032,2]
[426965560,1783078244000,-416.12498751,0.0002491,2]
[426965563,1783078244000,-528.934549,0.00025051,2]
[426965589,1783078244000,-231.78232602,0.00028919,2]
[426965579,1783078244000,-802.35194269,0.00028166,2]
[426965587,1783078244000,-301.9803159,0.00028919,2]
[426965578,1783078244000,-780.0,0.00028,2]
[426965582,1783078244000,-160.0,0.00028738,2]
[426965554,1783078244000,-13965.397305,0.00024035,2]
[426965580,1783078244000,-528.934549,0.00028214,2]
[426965574,1783078244000,-153.89938786,0.000279,5]
[426965585,1783078244000,-631.89290262,0.00028917,2]
[426965590,1783078244000,-377.51104806,0.00028919,2]
[426965583,1783078244000,-446.0,0.00028778,2]
[426965581,1783078244000,-155.76396271,0.00028455,2]
[426965584,1783078244000,-186.0,0.00028778,2]
[426965586,1783078244000,-165.28975832,0.00028917,2]
[426965592,1783078244000,-165.89565684,0.00029,2]
[426965593,1783078244000,-574.34465065,0.00029,2]
[426965591,1783078244000,-251.0,0.00029,2]
[426965573,1783078244000,-500.0,0.00027567,2]
[426965588,1783078244000,-330.32216705,0.00028919,2]
[426965566,1783078244000,-14144.3434973,0.00026478,30]
[426965567,1783078244000,-528.934549,0.0002716,2]
[426965555,1783078244000,-360.588034,0.00024035,2]
[426965556,1783078244000,-211.06378271,0.000243,2]
[426965559,1783078244000,-680.8589637,0.0002464,7]
[426965562,1783078244000,-342.84681291,0.00024912,2]
[426965558,1783078244000,-208.06249376,0.00024475,2]
[426965557,1783078244000,-165.28975832,0.00024374,2]
[426965565,1783078244000,-291.46,0.00026119,2]
[426965550,1783078244000,-500.0,0.00024032,2]
[426965568,1783078244000,-155.76396271,0.00027359,2]
[426965570,1783078244000,-535.21209709,0.00027446,5]
[426965571,1783078244000,-260.0,0.00027448,2]
[426965576,1783078244000,-251.0,0.00028,2]
[426965575,1783078244000,-155.76396271,0.00027907,2]
[426965577,1783078244000,-156.0,0.00028,2]
[426965569,1783078244000,-160.0,0.00027422,3]
[426965572,1783078244000,-500.0,0.00027566,2]
[426965612,1783078247000,-155.76396271,0.00029003,2]
[426965615,1783078247000,-2402.35740394,0.00029017,2]
[426965610,1783078247000,-150.0,0.00024033,2]
[426965611,1783078247000,-205.65534935,0.00029,2]
[426965613,1783078247000,-290.57,0.00029007,3]
[426965614,1783078247000,-871.71,0.00029007,3]
[426965616,1783078329000,-3345.81293019,0.00023935,2]
[426965631,1783079148000,-247.53999484,0.00022,7]
[426965632,1783079148000,-16.45424989,0.0002244,7]
[426965637,1783079313000,2366.97100125,7.6e-05,2]
[426965636,1783079313000,5074.67708059,7.6e-05,2]
[426965638,1783079321000,22394.15279095,0.00012,2]
[426965641,1783079349000,-1284.40143039,0.00018,2]
[426965643,1783079350000,-6604.36001764,0.00021,2]
[426965642,1783079350000,-2918.75206888,0.00018,2]
[426965646,1783079351000,-386.20836378,0.00022742,2]
[426965645,1783079351000,-231.08574495,0.0002244,7]
[426965644,1783079351000,-33.98145265,0.00021,2]
[426965695,1783079431000,-2126.9158685,0.00023835,2]
[426965698,1783079431000,-4997.06224585,0.00023835,2]
[426965691,1783079431000,-222.55312626,0.0002376,7]
[426965693,1783079431000,-24.98686858,0.0002376,7]
[426965689,1783079431000,-79.50774941,0.000231,7]
[426965686,1783079431000,-168.03224543,0.000231,7]
[426965680,1783079431000,-113.79163622,0.00022742,2]
[426965931,1783079437000,12289.917257,0.0002868,120]
[426965973,1783079438000,-738.99048929,0.00023931,2]
[426965977,1783079438000,-738.99048929,0.00023931,2]
[426965985,1783079438000,-9060.46059763,0.00023933,2]
[426965983,1783079438000,-738.99048929,0.00023931,2]
[426965980,1783079438000,-738.99048929,0.00023931,2]
[426965975,1783079438000,-738.99048929,0.00023931,2]
[426965982,1783079438000,-738.99048929,0.00023931,2]
[426965974,1783079438000,-738.99048929,0.00023931,2]
[426965979,1783079438000,-738.99048929,0.00023931,2]
[426965970,1783079438000,-249.13851782,0.00023931,2]
[426965976,1783079438000,-738.99048929,0.00023931,2]
[426965984,1783079438000,-738.99048929,0.00023931,2]
[426965968,1783079438000,-738.99048929,0.00023931,2]
[426965966,1783079438000,-209.00100939,0.00023835,2]
[426965971,1783079438000,-738.99048929,0.00023931,2]
[426965965,1783079438000,-547.28021085,0.00023834,2]
[426965981,1783079438000,-738.99048929,0.00023931,2]
[426965964,1783079438000,-178.98714636,0.00023834,2]
[426965962,1783079438000,-122.30159028,0.00023834,2]
[426965963,1783079438000,-377.69840972,0.00023834,2]
[426965960,1783079438000,-372.14851994,0.00023834,2]
[426965958,1783079438000,-500.0,0.00023834,2]
[426965959,1783079438000,-500.0,0.00023834,2]
[426965961,1783079438000,-500.0,0.00023834,2]
[426965956,1783079438000,-500.0,0.00023834,2]
[426965957,1783079438000,-500.0,0.00023834,2]
[426965972,1783079438000,-738.99048929,0.00023931,2]
[426965987,1783079438000,-500.0,0.00024034,2]
[426965978,1783079438000,-738.99048929,0.00023931,2]
[426965989,1783079438000,-156.30693769,0.00024471,2]
[426966016,1783079438000,-7332.97912371,0.00028552,2]
[426966013,1783079438000,-601.76395702,0.00028148,2]
[426966015,1783079438000,-163.35,0.00028401,3]
[426966014,1783079438000,-395.403313,0.00028343,2]
[426966012,1783079438000,-155.76396271,0.00028032,2]
[426965988,1783079438000,-166.0,0.00024454,3]
[426966010,1783079438000,-226.0,0.00028,2]
[426966007,1783079438000,-166.59,0.00027587,3]
[426966009,1783079438000,-162.67,0.00027963,3]
[426966008,1783079438000,-212.97,0.000279,2]
[426966006,1783079438000,-155.76396271,0.00027484,2]
[426966005,1783079438000,-395.403313,0.00027283,2]
[426966004,1783079438000,-166.0,0.00027279,3]
[426965999,1783079438000,-1036.03323253,0.00025589,3]
[426966011,1783079438000,-729.0,0.00028,2]
[426966002,1783079438000,-153.76,0.00026943,2]
[426966001,1783079438000,-395.403313,0.00026224,2]
[426965991,1783079438000,-360.9013607,0.00024907,2]
[426965986,1783079438000,-9264.72254823,0.00023935,2]
[426965993,1783079438000,-151.0,0.00025,7]
[426965992,1783079438000,-334.34962681,0.00024907,2]
[426965996,1783079438000,-395.403313,0.00025165,2]
[426965990,1783079438000,-247.53999488,0.0002464,7]
[426965997,1783079438000,-235.666062,0.00025225,2]
[426965994,1783079438000,-3886.88801567,0.00025,2]
[426965998,1783079438000,-494.82506926,0.00025469,3]
[426966003,1783079438000,-165.57,0.00027054,3]
[426966000,1783079438000,-7332.97912371,0.00026193,2]
[426965995,1783079438000,-196.94639322,0.00025065,2]
[426966031,1783079439000,-264.78074885,0.00028919,2]
[426966026,1783079439000,-589.76670914,0.00028915,2]
[426966030,1783079439000,-242.97617072,0.00028919,2]
[426966032,1783079439000,-443.15088705,0.00028919,2]
[426966033,1783079439000,-797.67159669,0.00028919,2]
[426966028,1783079439000,-589.27115158,0.00028919,2]
[426966029,1783079439000,-212.60414938,0.00028919,2]
[426966034,1783079439000,-1418.08283855,0.00028919,2]
[426966027,1783079439000,-196.94639321,0.00028915,2]
[426966019,1783079439000,-162.88,0.00028749,2]
[426966021,1783079439000,-1846.0,0.00028776,2]
[426966023,1783079439000,-186.0,0.00028776,2]
[426966024,1783079439000,-150.361,0.00028776,2]
[426966022,1783079439000,-446.0,0.00028776,2]
[426966020,1783079439000,-1422.0,0.00028776,2]
[426966018,1783079439000,-163.73,0.00028748,2]
[426966017,1783079439000,-160.0,0.0002868,14]
[426966036,1783079439000,-2213.53868081,0.00028919,2]
[426966025,1783079439000,-3518.94925546,0.0002881,2]
[426966035,1783079439000,-379.27061648,0.00028919,2]
[426966051,1783079439000,-154.28085942,0.00029015,60]
[426966037,1783079439000,-385.42087207,0.00028919,2]
[426966038,1783079439000,-226.0,0.00029,2]
[426966059,1783079439000,-4221.06329729,0.00029015,2]
[426966058,1783079439000,-305.38729171,0.00029015,2]
[426966049,1783079439000,-2404.1,0.00029015,2]
[426966055,1783079439000,-500.0,0.00029015,5]
[426966050,1783079439000,-5509.4,0.00029015,2]
[426966048,1783079439000,-4121.34,0.00029015,2]
[426966052,1783079439000,-500.0,0.00029015,5]
[426966045,1783079439000,-300.0,0.00029015,3]
[426966053,1783079439000,-500.0,0.00029015,5]
[426966057,1783079439000,-5894.30554776,0.00029015,2]
[426966056,1783079439000,-20806.62400239,0.00029015,2]
[426966046,1783079439000,-118366.85568929,0.00029015,2]
[426966044,1783079439000,-225.263791,0.00029015,7]
[426966041,1783079439000,-426.26,0.00029005,3]
[426966043,1783079439000,-639.41,0.00029005,3]
[426966039,1783079439000,-729.0,0.00029,2]
[426966040,1783079439000,-1023.0798175,0.00029,2]
[426966042,1783079439000,-213.13,0.00029005,3]
[426966047,1783079439000,-1433.51,0.00029015,2]
[426966061,1783079440000,-533.21222965,0.0002868,14]
[426966062,1783079440000,-858.09915735,0.0002868,14]
[426966064,1783079440000,-439.55162712,0.00029015,2]
[426966063,1783079440000,-2622.622775,0.0002868,14]
[426966080,1783079443000,-157.08,0.00029015,2]
[426966092,1783079443000,-159.988674,0.00029015,2]
[426966095,1783079443000,-328.3960047,0.00029015,2]
[426966093,1783079443000,-353.9199009,0.00029015,2]
[426966091,1783079443000,-479.218231,0.00029015,2]
[426966089,1783079443000,-151.0,0.00029015,2]
[426966088,1783079443000,-454.1174925,0.00029015,2]
[426966085,1783079443000,-157.11,0.00029015,2]
[426966087,1783079443000,-157.11,0.00029015,2]
[426966086,1783079443000,-157.11,0.00029015,2]
[426966084,1783079443000,-157.11,0.00029015,2]
[426966079,1783079443000,-152.0,0.00029015,2]
[426966069,1783079443000,-2550.19246867,0.00029015,2]
[426966078,1783079443000,-152.0,0.00029015,2]
[426966077,1783079443000,-152.0,0.00029015,2]
[426966076,1783079443000,-152.0,0.00029015,2]
[426966074,1783079443000,-286.65552355,0.00029015,2]
[426966083,1783079443000,-157.11,0.00029015,2]
[426966082,1783079443000,-157.11,0.00029015,2]
[426966081,1783079443000,-157.11,0.00029015,2]
[426966072,1783079443000,-7667.31673928,0.00029015,2]
[426966073,1783079443000,-1494.25100158,0.00029015,2]
[426966071,1783079443000,-473.52601772,0.00029015,5]
[426966070,1783079443000,-80434.2768766,0.00029015,2]
[426966090,1783079443000,-154.1502177,0.00029015,2]
[426966075,1783079443000,-152.0,0.00029015,2]
[426966094,1783079443000,-151.0,0.00029015,2]
[426966115,1783079443000,-327.9397335,0.00029015,2]
[426966098,1783079443000,-328.3960047,0.00029015,2]
[426966096,1783079443000,-151.0,0.00029015,2]
[426966123,1783079443000,-269295.01559246,0.00029015,2]
[426966121,1783079443000,-151.0,0.00029015,2]
[426966118,1783079443000,-152.0657548,0.00029015,2]
[426966122,1783079443000,-151.0,0.00029015,2]
[426966119,1783079443000,-151.0,0.00029015,2]
[426966117,1783079443000,-151.0,0.00029015,2]
[426966114,1783079443000,-288.366057,0.00029015,10]
[426966116,1783079443000,-171.3015535,0.00029015,2]
[426966111,1783079443000,-573.8229707,0.00029015,2]
[426966112,1783079443000,-151.0,0.00029015,2]
[426966110,1783079443000,-151.0,0.00029015,2]
[426966120,1783079443000,-328.250571,0.00029015,2]
[426966109,1783079443000,-151.0,0.00029015,2]
[426966105,1783079443000,-151.0,0.00029015,2]
[426966108,1783079443000,-151.0,0.00029015,2]
[426966106,1783079443000,-151.0,0.00029015,2]
[426966102,1783079443000,-151.0,0.00029015,2]
[426966103,1783079443000,-151.0,0.00029015,2]
[426966099,1783079443000,-151.0,0.00029015,2]
[426966104,1783079443000,-151.0,0.00029015,2]
[426966107,1783079443000,-328.2505712,0.00029015,2]
[426966101,1783079443000,-151.0,0.00029015,2]
[426966097,1783079443000,-151.0,0.00029015,2]
[426966100,1783079443000,-151.0,0.00029015,2]
[426966113,1783079443000,-328.250571,0.00029015,2]
[426966128,1783079446000,-13684.55533463,0.00029015,2]
[426966129,1783079446000,-16701.91764768,0.00029015,2]
[426966161,1783079717000,-196.94639321,0.00022742,7]
[426966162,1783079728000,-2.71957347,0.00022742,7]
[426966163,1783079781000,-186.0,0.00023196,7]
[426966169,1783080104000,-225.263791,0.00023196,4]
[426966170,1783080115000,-225.263791,0.00023196,4]
[426966171,1783080125000,-300.0,0.00023196,4]
[426966172,1783080136000,-213.13,0.00023196,4]
[426966180,1783080438000,-62.96073155,0.00023196,4]
[426966181,1783080438000,-13.66596668,0.00023196,7]
[426966182,1783080438000,-199.66596668,0.00023879,7]
[426966187,1783080438000,-235.6660633,0.00026669,2]
[426966184,1783080438000,-312.61387538,0.00024904,2]
[426966185,1783080438000,-199.66596668,0.0002547,7]
[426966183,1783080438000,-199.66596668,0.00024561,7]
[426966189,1783080438000,-266.418299,0.0002799,4]
[426966188,1783080438000,-150.0,0.000279,2]
[426966191,1783080438000,-253.40951743,0.00027999,2]
[426966192,1783080438000,-204.0,0.00028,2]
[426966190,1783080438000,-227.47557898,0.00027999,2]
[426966193,1783080438000,-656.0,0.00028,2]
[426966194,1783080438000,-1798.44247095,0.00028,2]
[426966186,1783080438000,-1936.7119154,0.00026584,2]
[426966506,1783080638000,-2786.37721497,0.000287,2]
[426966505,1783080638000,-173.18188097,0.00028668,2]
[426966630,1783080641000,-750.35131171,0.000287,2]
[426966644,1783080643000,-432.22589577,0.000287,2]
[426966645,1783080643000,-190.82052769,0.00028758,2]
[426966646,1783080643000,-3421.46889304,0.00028758,2]
[426966650,1783080643000,-659.95107196,0.00028763,2]
[426966648,1783080643000,-190.82052768,0.00028761,2]
[426966649,1783080643000,-190.82052768,0.00028763,2]
[426966651,1783080643000,-174.39696248,0.00028763,2]
[426966647,1783080643000,-1161.64305934,0.00028758,2]
[426966652,1783080644000,-659.95107196,0.00028763,2]
[426966657,1783080644000,-659.95107196,0.00028763,2]
[426966655,1783080644000,-659.95107196,0.00028763,2]
[426966653,1783080644000,-659.95107196,0.00028763,2]
[426966654,1783080644000,-659.95107196,0.00028763,2]
[426966656,1783080644000,-659.95107196,0.00028763,2]
[426966664,1783080644000,-659.95107196,0.00028763,2]
[426966660,1783080644000,-659.95107196,0.00028763,2]
[426966658,1783080644000,-659.95107196,0.00028763,2]
[426966661,1783080644000,-659.95107196,0.00028763,2]
[426966662,1783080644000,-659.95107196,0.00028763,2]
[426966663,1783080644000,-659.95107196,0.00028763,2]
[426966666,1783080644000,-1959.38003228,0.00028764,2]
[426966667,1783080644000,-190.82052768,0.00028766,2]
[426966665,1783080644000,-659.95107196,0.00028763,2]
[426966668,1783080644000,-13458.31971445,0.00028768,120]
[426966659,1783080644000,-659.95107196,0.00028763,2]
[426966686,1783080649000,-196.412,0.00028776,2]
[426966689,1783080649000,-248.65,0.00028858,3]
[426966690,1783080649000,-745.96,0.00028858,3]
[426966687,1783080649000,-186.0,0.00028776,2]
[426966693,1783080649000,-2000.0,0.00028858,2]
[426966688,1783080649000,-446.0,0.00028776,2]
[426966684,1783080649000,-190.82052768,0.00028768,2]
[426966691,1783080649000,-2000.0,0.00028858,2]
[426966685,1783080649000,-1846.0,0.00028776,2]
[426966683,1783080649000,-1685664.32465354,0.00028768,120]
[426966682,1783080649000,-746.26247986,0.00028768,120]
[426966681,1783080649000,-131.09315215,0.00028768,120]
[426966695,1783080649000,-2000.0,0.00028858,2]
[426966692,1783080649000,-2000.0,0.00028858,2]
[426966697,1783080649000,-996.38792975,0.00028858,2]
[426966694,1783080649000,-2000.0,0.00028858,2]
[426966699,1783080649000,-622.67,0.00028868,2]
[426966713,1783080649000,-37399.20390119,0.00029034,2]
[426966708,1783080649000,-656.0,0.00029,2]
[426966711,1783080649000,-255.42305529,0.0002903,90]
[426966709,1783080649000,-451.32296776,0.00029015,2]
[426966710,1783080649000,-440.48099665,0.00029015,2]
[426966707,1783080649000,-204.0,0.00029,2]
[426966704,1783080649000,-169.399361,0.0002891,14]
[426966712,1783080649000,-234.26570921,0.0002903,120]
[426966703,1783080649000,-205.802263,0.0002891,14]
[426966702,1783080649000,-205.802262,0.0002891,120]
[426966700,1783080649000,-151.0,0.000289,12]
[426966701,1783080649000,-169.399361,0.0002891,14]
[426966705,1783080649000,-248.515941,0.0002891,14]
[426966696,1783080649000,-2000.0,0.00028858,2]
[426966698,1783080649000,-500.0,0.00028858,3]
[426966706,1783080649000,-550.44892854,0.00028934,2]
[426966731,1783080650000,-500.0,0.00029041,7]
[426966734,1783080650000,-258.91040986,0.00029041,7]
[426966733,1783080650000,-500.0,0.00029041,7]
[426966735,1783080650000,-323.0,0.00029041,120]
[426966736,1783080650000,-500.0,0.00029041,7]
[426966737,1783080650000,-500.0,0.00029041,7]
[426966741,1783080650000,-627.33154399,0.00029041,7]
[426966738,1783080650000,-500.0,0.00029041,7]
[426966739,1783080650000,-500.0,0.00029041,7]
[426966740,1783080650000,-500.0,0.00029041,7]
[426966745,1783080650000,-500.0,0.00029041,2]
[426966729,1783080650000,-500.0,0.00029038,11]
[426966732,1783080650000,-500.0,0.00029041,7]
[426966727,1783080650000,-150.0,0.00029037,2]
[426966720,1783080650000,-4500.0,0.00029034,2]
[426966724,1783080650000,-1741.95594569,0.00029034,60]
[426966726,1783080650000,-340.0,0.00029037,2]
[426966723,1783080650000,-194.32,0.00029034,2]
[426966722,1783080650000,-497.14243278,0.00029034,2]
[426966725,1783080650000,-896.64342246,0.00029034,2]
[426966721,1783080650000,-3206.40743339,0.00029034,2]
[426966719,1783080650000,-2920.0,0.00029034,2]
[426966750,1783080650000,-500.0,0.00029041,7]
[426966730,1783080650000,-500.0,0.00029041,7]
[426966715,1783080650000,-2928.76882538,0.00029034,30]
[426966717,1783080650000,-4922.96235238,0.00029034,2]
[426966718,1783080650000,-773.49609487,0.00029034,2]
[426966714,1783080650000,-756.92042263,0.00029034,2]
[426966716,1783080650000,-1573.6554356,0.00029034,2]
[426966728,1783080650000,-1483.88896902,0.00029038,120]
[426966743,1783080650000,-500.0,0.00029041,2]
[426966775,1783080650000,-504.46834856,0.00029041,7]
[426966748,1783080650000,-501.50660053,0.00029041,2]
[426966773,1783080650000,-280.73700653,0.00029041,7]
[426966776,1783080650000,-438.27642843,0.00029041,7]
[426966774,1783080650000,-219.26299347,0.00029041,7]
[426966768,1783080650000,-309.02,0.00029041,7]
[426966767,1783080650000,-500.0,0.00029041,7]
[426966770,1783080650000,-546.213087,0.00029041,7]
[426966771,1783080650000,-500.0,0.00029041,7]
[426966766,1783080650000,-500.0,0.00029041,7]
[426966772,1783080650000,-500.0,0.00029041,7]
[426966765,1783080650000,-500.0,0.00029041,7]
[426966763,1783080650000,-500.0,0.00029041,7]
[426966764,1783080650000,-500.0,0.00029041,7]
[426966762,1783080650000,-503.04472305,0.00029041,7]
[426966761,1783080650000,-500.0,0.00029041,7]
[426966769,1783080650000,-425.21299488,0.00029041,7]
[426966759,1783080650000,-503.14652548,0.00029041,7]
[426966760,1783080650000,-500.0,0.00029041,7]
[426966742,1783080650000,-282.78113677,0.00029041,7]
[426966744,1783080650000,-500.0,0.00029041,2]
[426966749,1783080650000,-500.0,0.00029041,7]
[426966746,1783080650000,-500.0,0.00029041,2]
[426966752,1783080650000,-500.0,0.00029041,7]
[426966747,1783080650000,-500.0,0.00029041,2]
[426966758,1783080650000,-392.62206866,0.00029041,7]
[426966753,1783080650000,-500.0,0.00029041,7]